[Event "Early-Titled-Tuesday-Blitz-July-09-2024"]
[Site "Chess.com"]
[Date "2024.07.09"]
[Round "7"]
[White "Szachulec75"]
[Black "Boudicca64"]
[Result "1-0"]
[WhiteElo "2240"]
[BlackElo "1941"]
[TimeControl "180+1"]
[EndTime "9:17:32 PDT"]
[Termination "Szachulec75 won by resignation"]

1. Nf3 {[%clk 0:03:00.9]} 1... Nf6 {[%clk 0:02:57.9]} 2. g3 {[%clk 0:03:00.7]}
2... g6 {[%clk 0:02:57.8]} 3. Bg2 {[%clk 0:03:00.9]} 3... Bg7 {[%clk 0:02:57.4]}
4. d3 {[%clk 0:03:01.7]} 4... O-O {[%clk 0:02:56.6]} 5. O-O {[%clk 0:03:02.6]}
5... d6 {[%clk 0:02:55.3]} 6. e4 {[%clk 0:03:01.6]} 6... c5 {[%clk 0:02:54.5]}
7. Nc3 {[%clk 0:03:00.3]} 7... Nc6 {[%clk 0:02:53.6]} 8. Bg5 {[%clk 0:03:00.7]}
8... h6 {[%clk 0:02:52.3]} 9. Be3 {[%clk 0:03:00]} 9... b6 {[%clk 0:02:48.7]}
10. h3 {[%clk 0:02:40.1]} 10... Bb7 {[%clk 0:02:45.8]} 11. Qd2 {[%clk
0:02:40.2]} 11... e5 {[%clk 0:02:41]} 12. Bxh6 {[%clk 0:02:39]} 12... Nd4 {[%clk
0:02:38.9]} 13. Bxg7 {[%clk 0:02:35.9]} 13... Kxg7 {[%clk 0:02:37.9]} 14. Nd1
{[%clk 0:02:33.6]} 14... Rh8 {[%clk 0:02:36.4]} 15. Ng5 {[%clk 0:02:27.6]} 15...
d5 {[%clk 0:02:28]} 16. c3 {[%clk 0:02:25.6]} 16... Ne6 {[%clk 0:02:25.6]} 17.
Nxe6+ {[%clk 0:02:12.4]} 17... fxe6 {[%clk 0:02:23.8]} 18. Qe2 {[%clk
0:02:12.2]} 18... Nh5 {[%clk 0:02:10.5]} 19. exd5 {[%clk 0:02:09.5]} 19... Bxd5
{[%clk 0:02:04.2]} 20. Qxe5+ {[%clk 0:02:09.2]} 20... Kh7 {[%clk 0:02:03]} 21.
Ne3 {[%clk 0:01:56.7]} 21... Bxg2 {[%clk 0:01:55]} 22. Kxg2 {[%clk 0:01:56.9]}
22... Re8 {[%clk 0:01:45.9]} 23. Rad1 {[%clk 0:01:53.9]} 23... Qe7 {[%clk
0:01:41.2]} 24. Rfe1 {[%clk 0:01:48]} 24... Rf8 {[%clk 0:01:36.3]} 25. Ng4
{[%clk 0:01:47.6]} 25... Qb7+ {[%clk 0:01:32.9]} 26. Kg1 {[%clk 0:01:45.5]}
26... Rf3 {[%clk 0:01:19.8]} 27. Qe4 {[%clk 0:01:32.7]} 27... Qf7 {[%clk
0:01:08.8]} 28. Ne5 {[%clk 0:01:29.8]} 28... Nxg3 {[%clk 0:01:01.2]} 29. Qxf3
{[%clk 0:01:26.2]} 1-0

[Event "Early-Titled-Tuesday-Blitz-July-09-2024"]
[Site "Chess.com"]
[Date "2024.07.09"]
[Round "7"]
[White "chrisclaireredfield"]
[Black "KogotBobra17"]
[Result "1-0"]
[WhiteElo "2522"]
[BlackElo "2651"]
[TimeControl "180+1"]
[EndTime "9:17:33 PDT"]
[Termination "chrisclaireredfield won by resignation"]

1. Nf3 {[%clk 0:03:00.9]} 1... b5 {[%clk 0:02:59.9]} 2. Na3 {[%clk 0:02:58.6]}
2... b4 {[%clk 0:02:59.2]} 3. Nc4 {[%clk 0:02:58.3]} 3... d5 {[%clk 0:02:59.6]}
4. Nce5 {[%clk 0:02:58.2]} 4... f6 {[%clk 0:03:00]} 5. Nd3 {[%clk 0:02:53.5]}
5... e5 {[%clk 0:03:00.4]} 6. Ng1 {[%clk 0:02:43.2]} 6... c5 {[%clk 0:02:45.4]}
7. a3 {[%clk 0:02:40.2]} 7... Nc6 {[%clk 0:02:28.9]} 8. axb4 {[%clk 0:02:39.5]}
8... c4 {[%clk 0:02:29.3]} 9. Nc5 {[%clk 0:02:36.3]} 9... Nxb4 {[%clk
0:02:29.1]} 10. c3 {[%clk 0:02:30.1]} 10... Nc6 {[%clk 0:02:18.6]} 11. d4 {[%clk
0:02:28.2]} 11... Bxc5 {[%clk 0:02:06.9]} 12. dxc5 {[%clk 0:02:28.2]} 12... Nge7
{[%clk 0:02:07.8]} 13. e4 {[%clk 0:02:22]} 13... Be6 {[%clk 0:02:08.1]} 14. exd5
{[%clk 0:02:15.9]} 14... Bxd5 {[%clk 0:02:09]} 15. Qa4 {[%clk 0:02:07.6]} 15...
Qd7 {[%clk 0:02:04.5]} 16. Nf3 {[%clk 0:02:05.8]} 16... Qe6 {[%clk 0:02:03]} 17.
Nd2 {[%clk 0:02:02.8]} 17... Qg4 {[%clk 0:01:43.2]} 18. h3 {[%clk 0:01:49.8]}
18... Qg6 {[%clk 0:01:42.4]} 19. Nxc4 {[%clk 0:01:48.2]} 19... O-O {[%clk
0:01:38.9]} 20. Ne3 {[%clk 0:01:46.3]} 20... Kh8 {[%clk 0:01:30]} 21. Nxd5
{[%clk 0:01:43.7]} 21... Nxd5 {[%clk 0:01:30.9]} 22. Qxc6 {[%clk 0:01:43.3]}
22... Nf4 {[%clk 0:01:27.4]} 23. Bxf4 {[%clk 0:01:41.3]} 23... exf4 {[%clk
0:01:28.3]} 24. O-O-O {[%clk 0:01:40.5]} 24... Rac8 {[%clk 0:01:20.1]} 25. Qd5
{[%clk 0:01:39.8]} 25... a5 {[%clk 0:01:19.6]} 26. Bd3 {[%clk 0:01:38.1]} 26...
Qh6 {[%clk 0:01:20.2]} 27. Kb1 {[%clk 0:01:33.5]} 27... a4 {[%clk 0:01:20.4]}
28. Ka2 {[%clk 0:01:24.2]} 28... Rfd8 {[%clk 0:01:18.6]} 29. Qf5 {[%clk
0:01:23.3]} 29... a3 {[%clk 0:01:17]} 30. b4 {[%clk 0:01:18.7]} 30... f3 {[%clk
0:01:15.2]} 31. gxf3 {[%clk 0:01:13]} 31... Qxh3 {[%clk 0:01:13.9]} 1-0

[Event "Early-Titled-Tuesday-Blitz-July-09-2024"]
[Site "Chess.com"]
[Date "2024.07.09"]
[Round "7"]
[White "GMT4114"]
[Black "Twinstulle"]
[Result "1-0"]
[WhiteElo "1974"]
[BlackElo "2347"]
[TimeControl "180+1"]
[EndTime "9:17:37 PDT"]
[Termination "GMT4114 won by checkmate"]

1. e4 {[%clk 0:03:00.9]} 1... c5 {[%clk 0:02:59.4]} 2. Nc3 {[%clk 0:02:59.4]}
2... e6 {[%clk 0:02:59.8]} 3. Nge2 {[%clk 0:02:58.6]} 3... Nc6 {[%clk
0:02:59.2]} 4. g3 {[%clk 0:02:58.2]} 4... d6 {[%clk 0:02:57.3]} 5. Bg2 {[%clk
0:02:57.9]} 5... Bd7 {[%clk 0:02:55.7]} 6. O-O {[%clk 0:02:57.7]} 6... Nf6
{[%clk 0:02:55.1]} 7. d3 {[%clk 0:02:57.8]} 7... Be7 {[%clk 0:02:54.3]} 8. f4
{[%clk 0:02:57.9]} 8... O-O {[%clk 0:02:53.9]} 9. h3 {[%clk 0:02:58.1]} 9... Rb8
{[%clk 0:02:54]} 10. g4 {[%clk 0:02:53.2]} 10... b5 {[%clk 0:02:46.2]} 11. Ng3
{[%clk 0:02:53.2]} 11... b4 {[%clk 0:02:45.8]} 12. Nce2 {[%clk 0:02:53.3]} 12...
Nd4 {[%clk 0:02:41.7]} 13. g5 {[%clk 0:02:46.6]} 13... Ne8 {[%clk 0:02:40.5]}
14. h4 {[%clk 0:02:46.7]} 14... Ba4 {[%clk 0:02:38.6]} 15. b3 {[%clk 0:02:43.9]}
15... Bc6 {[%clk 0:02:35.2]} 16. f5 {[%clk 0:02:33.9]} 16... Nc7 {[%clk
0:01:51.9]} 17. Nxd4 {[%clk 0:02:26.8]} 17... cxd4 {[%clk 0:01:51.3]} 18. Qg4
{[%clk 0:02:26.9]} 18... Kh8 {[%clk 0:01:45]} 19. Nh5 {[%clk 0:02:21.3]} 19...
Rg8 {[%clk 0:01:35.3]} 20. Nf4 {[%clk 0:01:54.3]} 20... e5 {[%clk 0:01:32.3]}
21. Nh3 {[%clk 0:01:46.5]} 21... f6 {[%clk 0:01:28.1]} 22. a3 {[%clk 0:01:41.8]}
22... bxa3 {[%clk 0:01:21.6]} 23. Bxa3 {[%clk 0:01:35.5]} 23... Nb5 {[%clk
0:01:19.7]} 24. Bc1 {[%clk 0:01:32.9]} 24... Rb7 {[%clk 0:01:17.3]} 25. Qh5
{[%clk 0:01:29.8]} 25... Bf8 {[%clk 0:01:14.9]} 26. Kh2 {[%clk 0:01:27.1]} 26...
Nc3 {[%clk 0:01:14.1]} 27. Bf3 {[%clk 0:01:26.1]} 27... Be8 {[%clk 0:01:11.3]}
28. g6 {[%clk 0:01:09.6]} 28... a5 {[%clk 0:01:06.3]} 29. Qxh7# {[%clk
0:01:08.1]} 1-0

[Event "Early-Titled-Tuesday-Blitz-July-09-2024"]
[Site "Chess.com"]
[Date "2024.07.09"]
[Round "7"]
[White "gafkens"]
[Black "gmpeter008"]
[Result "0-1"]
[WhiteElo "2634"]
[BlackElo "2477"]
[TimeControl "180+1"]
[EndTime "9:17:39 PDT"]
[Termination "gmpeter008 won by resignation"]

1. e4 {[%clk 0:03:00.9]} 1... e5 {[%clk 0:02:59.3]} 2. Nf3 {[%clk 0:02:55.2]}
2... Nc6 {[%clk 0:02:59.8]} 3. d4 {[%clk 0:02:45.1]} 3... exd4 {[%clk
0:02:59.6]} 4. Nxd4 {[%clk 0:02:45.5]} 4... Nf6 {[%clk 0:03:00.1]} 5. Nxc6
{[%clk 0:02:37.1]} 5... bxc6 {[%clk 0:02:59.9]} 6. Bd3 {[%clk 0:02:37.6]} 6...
d6 {[%clk 0:02:59.5]} 7. O-O {[%clk 0:02:36.8]} 7... Be7 {[%clk 0:03:00]} 8. f4
{[%clk 0:02:36.1]} 8... O-O {[%clk 0:03:00.3]} 9. h3 {[%clk 0:02:34.9]} 9... Nd7
{[%clk 0:03:00.5]} 10. c3 {[%clk 0:02:32.5]} 10... Nc5 {[%clk 0:02:58.6]} 11.
Bc2 {[%clk 0:02:32.8]} 11... a5 {[%clk 0:02:58.9]} 12. Qf3 {[%clk 0:02:31.6]}
12... d5 {[%clk 0:02:44.5]} 13. e5 {[%clk 0:02:26.2]} 13... f5 {[%clk 0:02:38]}
14. exf6 {[%clk 0:02:21.1]} 14... Bxf6 {[%clk 0:02:37.9]} 15. Be3 {[%clk
0:02:12.3]} 15... Ne4 {[%clk 0:02:04.2]} 16. Nd2 {[%clk 0:01:33.8]} 16... Nxd2
{[%clk 0:01:59.6]} 17. Bxd2 {[%clk 0:01:34.7]} 17... Ba6 {[%clk 0:01:56.8]} 18.
Rfe1 {[%clk 0:01:34.4]} 18... Rb8 {[%clk 0:01:50.5]} 19. b3 {[%clk 0:01:20.8]}
19... d4 {[%clk 0:01:50.4]} 20. c4 {[%clk 0:00:59.1]} 20... d3 {[%clk
0:01:48.4]} 21. Bxd3 {[%clk 0:00:59]} 21... Bxa1 {[%clk 0:01:48]} 22. Rxa1
{[%clk 0:00:49]} 22... Qd4+ {[%clk 0:01:47.8]} 23. Kh2 {[%clk 0:00:47.5]} 23...
Rbd8 {[%clk 0:01:23.4]} 0-1

[Event "Early-Titled-Tuesday-Blitz-July-09-2024"]
[Site "Chess.com"]
[Date "2024.07.09"]
[Round "7"]
[White "Ganziitoo"]
[Black "wannabe2700"]
[Result "0-1"]
[WhiteElo "2260"]
[BlackElo "2548"]
[TimeControl "180+1"]
[EndTime "9:17:39 PDT"]
[Termination "wannabe2700 won by resignation"]

1. e4 {[%clk 0:02:57.1]} 1... c6 {[%clk 0:02:58.5]} 2. d4 {[%clk 0:02:57.1]}
2... d5 {[%clk 0:02:58.5]} 3. e5 {[%clk 0:02:57.8]} 3... c5 {[%clk 0:02:57.2]}
4. Nf3 {[%clk 0:02:55.8]} 4... cxd4 {[%clk 0:02:56.1]} 5. Nxd4 {[%clk
0:02:56.7]} 5... Nc6 {[%clk 0:02:56.5]} 6. Nxc6 {[%clk 0:02:56.7]} 6... bxc6
{[%clk 0:02:57.4]} 7. Bd3 {[%clk 0:02:57.2]} 7... e6 {[%clk 0:02:51.8]} 8. O-O
{[%clk 0:02:56.2]} 8... a5 {[%clk 0:02:51.6]} 9. Nd2 {[%clk 0:02:52.9]} 9... Ba6
{[%clk 0:02:48.8]} 10. Bxa6 {[%clk 0:02:53]} 10... Rxa6 {[%clk 0:02:49.7]} 11.
Nf3 {[%clk 0:02:50.1]} 11... c5 {[%clk 0:02:48.9]} 12. Qe2 {[%clk 0:02:42.1]}
12... c4 {[%clk 0:02:41.5]} 13. Be3 {[%clk 0:02:16.2]} 13... Ne7 {[%clk
0:02:40.9]} 14. Bg5 {[%clk 0:01:39.9]} 14... Qc7 {[%clk 0:02:36.3]} 15. h4
{[%clk 0:01:32.7]} 15... Nc6 {[%clk 0:02:33.9]} 16. c3 {[%clk 0:01:28.8]} 16...
Bc5 {[%clk 0:02:33.2]} 17. h5 {[%clk 0:01:24.7]} 17... h6 {[%clk 0:02:33]} 18.
Bf4 {[%clk 0:01:23.9]} 18... O-O {[%clk 0:02:32.9]} 19. Rad1 {[%clk 0:01:21.3]}
19... Rb8 {[%clk 0:02:30.9]} 20. Nd4 {[%clk 0:01:18.5]} 20... Rab6 {[%clk
0:02:28.8]} 21. Rd2 {[%clk 0:01:17.3]} 21... Qb7 {[%clk 0:02:06]} 22. Qg4 {[%clk
0:00:44.8]} 22... Kh8 {[%clk 0:02:04.4]} 23. Rb1 {[%clk 0:00:25.2]} 23... Bxd4
{[%clk 0:02:02.2]} 24. cxd4 {[%clk 0:00:26.1]} 24... c3 {[%clk 0:02:02.8]} 25.
Rc2 {[%clk 0:00:20.5]} 25... Rxb2 {[%clk 0:02:02.7]} 26. Rbc1 {[%clk 0:00:19.3]}
26... Nxd4 {[%clk 0:02:01.8]} 27. Bxh6 {[%clk 0:00:12.5]} 27... gxh6 {[%clk
0:02:02.7]} 28. Qxd4 {[%clk 0:00:12.1]} 28... Rxc2 {[%clk 0:02:03.3]} 0-1

[Event "Early-Titled-Tuesday-Blitz-July-09-2024"]
[Site "Chess.com"]
[Date "2024.07.09"]
[Round "7"]
[White "ansko1999"]
[Black "Pachonpower"]
[Result "1-0"]
[WhiteElo "2631"]
[BlackElo "2464"]
[TimeControl "180+1"]
[EndTime "9:17:41 PDT"]
[Termination "ansko1999 won by resignation"]

1. Nc3 {[%clk 0:03:00.9]} 1... d5 {[%clk 0:02:59.4]} 2. e4 {[%clk 0:03:00.1]}
2... dxe4 {[%clk 0:02:58.6]} 3. Nxe4 {[%clk 0:03:01]} 3... Nf6 {[%clk
0:02:59.2]} 4. Nxf6+ {[%clk 0:03:01]} 4... exf6 {[%clk 0:03:00.1]} 5. d4 {[%clk
0:03:00.3]} 5... Bd6 {[%clk 0:03:00.3]} 6. Bd3 {[%clk 0:03:00.5]} 6... O-O
{[%clk 0:03:00.9]} 7. Ne2 {[%clk 0:03:00.9]} 7... Nc6 {[%clk 0:03:00.7]} 8. O-O
{[%clk 0:02:59.2]} 8... Re8 {[%clk 0:03:01.1]} 9. c3 {[%clk 0:02:56.8]} 9... Ne7
{[%clk 0:02:59.5]} 10. Ng3 {[%clk 0:02:56.3]} 10... Ng6 {[%clk 0:02:58.6]} 11.
f4 {[%clk 0:02:54.7]} 11... c5 {[%clk 0:02:55]} 12. f5 {[%clk 0:02:54.7]} 12...
Ne7 {[%clk 0:02:54.4]} 13. Qg4 {[%clk 0:02:50.1]} 13... Kh8 {[%clk 0:02:53.2]}
14. Nh5 {[%clk 0:02:44.9]} 14... Rg8 {[%clk 0:02:52.7]} 15. Be3 {[%clk 0:02:34]}
15... Nd5 {[%clk 0:02:50.5]} 16. Bd2 {[%clk 0:02:32.5]} 16... cxd4 {[%clk
0:02:50.1]} 17. cxd4 {[%clk 0:02:28.7]} 17... Qb6 {[%clk 0:02:49.6]} 18. Bc4
{[%clk 0:02:23.2]} 18... Nf4 {[%clk 0:02:16.7]} 19. Nxf4 {[%clk 0:01:59.8]}
19... Qxd4+ {[%clk 0:02:13.6]} 20. Rf2 {[%clk 0:02:00]} 20... Qxc4 {[%clk
0:02:10.2]} 21. Ng6+ {[%clk 0:01:58.7]} 21... fxg6 {[%clk 0:02:08.4]} 22. Qxc4
{[%clk 0:01:58.8]} 22... Bxf5 {[%clk 0:02:08.3]} 23. Rxf5 {[%clk 0:01:53.7]}
23... gxf5 {[%clk 0:02:08.1]} 24. Bf4 {[%clk 0:01:53.9]} 24... Rac8 {[%clk
0:02:06]} 25. Qa4 {[%clk 0:01:52]} 25... Bc5+ {[%clk 0:02:05.7]} 26. Kh1 {[%clk
0:01:44.3]} 26... Rge8 {[%clk 0:02:06.6]} 27. Rc1 {[%clk 0:01:40.1]} 27... Bf8
{[%clk 0:01:57.1]} 28. Rf1 {[%clk 0:01:19.9]} 28... Re4 {[%clk 0:01:54.9]} 29.
Qxa7 {[%clk 0:01:12.8]} 29... Rxf4 {[%clk 0:01:35.7]} 30. Rxf4 {[%clk
0:01:13.7]} 30... Rc1+ {[%clk 0:01:34.9]} 31. Qg1 {[%clk 0:01:14.1]} 31... Rxg1+
{[%clk 0:01:35.4]} 32. Kxg1 {[%clk 0:01:15]} 32... Bc5+ {[%clk 0:01:35.3]} 33.
Kf1 {[%clk 0:01:15.1]} 33... g6 {[%clk 0:01:35.8]} 34. Rc4 {[%clk 0:01:11.8]}
34... Bd6 {[%clk 0:01:33.9]} 35. a4 {[%clk 0:01:09.1]} 35... Bxh2 {[%clk
0:01:33.6]} 36. Rb4 {[%clk 0:01:05.9]} 36... Kg7 {[%clk 0:01:25.4]} 37. Rxb7+
{[%clk 0:01:06.8]} 37... Kh6 {[%clk 0:01:26.1]} 38. a5 {[%clk 0:01:06.3]} 38...
Kg5 {[%clk 0:01:25.4]} 39. a6 {[%clk 0:01:06.8]} 39... Bd6 {[%clk 0:01:25.1]}
40. a7 {[%clk 0:01:06.5]} 1-0

[Event "Early-Titled-Tuesday-Blitz-July-09-2024"]
[Site "Chess.com"]
[Date "2024.07.09"]
[Round "7"]
[White "jbking07"]
[Black "Chessdude1987"]
[Result "0-1"]
[WhiteElo "2463"]
[BlackElo "2340"]
[TimeControl "180+1"]
[EndTime "9:17:46 PDT"]
[Termination "Chessdude1987 won by resignation"]

1. e4 {[%clk 0:03:00.9]} 1... e6 {[%clk 0:02:59.7]} 2. d4 {[%clk 0:03:00.8]}
2... d5 {[%clk 0:03:00]} 3. Nc3 {[%clk 0:03:01.1]} 3... Nf6 {[%clk 0:02:59.6]}
4. e5 {[%clk 0:03:01]} 4... Nfd7 {[%clk 0:02:59.5]} 5. Nce2 {[%clk 0:03:00.9]}
5... c5 {[%clk 0:02:59.9]} 6. c3 {[%clk 0:03:01.1]} 6... Nc6 {[%clk 0:03:00.5]}
7. Nf3 {[%clk 0:03:01.6]} 7... Qb6 {[%clk 0:03:01.1]} 8. a3 {[%clk 0:02:55.4]}
8... f6 {[%clk 0:02:54.9]} 9. exf6 {[%clk 0:02:50.2]} 9... Nxf6 {[%clk
0:02:54.5]} 10. g3 {[%clk 0:02:43.6]} 10... cxd4 {[%clk 0:02:48.4]} 11. cxd4
{[%clk 0:02:42.4]} 11... Ne4 {[%clk 0:02:48.3]} 12. Nc3 {[%clk 0:02:27.6]} 12...
Bd6 {[%clk 0:02:36.5]} 13. Bg2 {[%clk 0:02:21.3]} 13... O-O {[%clk 0:02:35.8]}
14. O-O {[%clk 0:02:20.8]} 14... Bd7 {[%clk 0:02:28.2]} 15. Nxe4 {[%clk
0:02:16.3]} 15... dxe4 {[%clk 0:02:28.2]} 16. Ng5 {[%clk 0:02:14.6]} 16... Nxd4
{[%clk 0:02:04.1]} 17. Bxe4 {[%clk 0:01:24.4]} 17... h6 {[%clk 0:02:02.3]} 18.
Nh3 {[%clk 0:01:06.2]} 18... e5 {[%clk 0:01:50]} 19. Kg2 {[%clk 0:00:59]} 19...
Bc6 {[%clk 0:01:30.4]} 20. Qd3 {[%clk 0:00:46.6]} 20... Bb5 {[%clk 0:01:26.6]}
21. Bd5+ {[%clk 0:00:40.7]} 21... Kh8 {[%clk 0:01:26.2]} 22. Qg6 {[%clk
0:00:33.2]} 22... Bxf1+ {[%clk 0:01:23.7]} 23. Kxf1 {[%clk 0:00:33.4]} 23...
Qb5+ {[%clk 0:01:23.8]} 0-1

[Event "Early-Titled-Tuesday-Blitz-July-09-2024"]
[Site "Chess.com"]
[Date "2024.07.09"]
[Round "7"]
[White "David_Arutinian"]
[Black "Djager97"]
[Result "1-0"]
[WhiteElo "2832"]
[BlackElo "2627"]
[TimeControl "180+1"]
[EndTime "9:17:47 PDT"]
[Termination "David_Arutinian won by resignation"]

1. Nf3 {[%clk 0:03:00.9]} 1... d5 {[%clk 0:02:59.9]} 2. e3 {[%clk 0:03:00.9]}
2... Nf6 {[%clk 0:02:59.5]} 3. c4 {[%clk 0:03:01.1]} 3... e6 {[%clk 0:02:59.1]}
4. b3 {[%clk 0:03:01.2]} 4... c5 {[%clk 0:02:52.1]} 5. Bb2 {[%clk 0:03:00.9]}
5... Nc6 {[%clk 0:02:51.3]} 6. cxd5 {[%clk 0:03:01.1]} 6... Nxd5 {[%clk
0:02:46]} 7. a3 {[%clk 0:03:00.9]} 7... Nf6 {[%clk 0:02:24.2]} 8. Nc3 {[%clk
0:02:55.4]} 8... Be7 {[%clk 0:02:23.9]} 9. Qc2 {[%clk 0:02:56]} 9... O-O {[%clk
0:02:22]} 10. h4 {[%clk 0:02:56.6]} 10... Ng4 {[%clk 0:01:49.8]} 11. Ne4 {[%clk
0:02:46.6]} 11... e5 {[%clk 0:01:38.9]} 12. Nfg5 {[%clk 0:02:25.3]} 12... f5
{[%clk 0:01:24.1]} 13. Nxc5 {[%clk 0:02:11.7]} 13... Bxg5 {[%clk 0:01:23.7]} 14.
hxg5 {[%clk 0:02:09.3]} 14... Qxg5 {[%clk 0:01:23.9]} 15. Bc4+ {[%clk
0:02:08.4]} 15... Kh8 {[%clk 0:01:23.6]} 16. f3 {[%clk 0:02:03.3]} 16... Nxe3
{[%clk 0:01:01.6]} 17. dxe3 {[%clk 0:01:49]} 17... Qxe3+ {[%clk 0:01:02.5]} 18.
Be2 {[%clk 0:01:44.2]} 18... b6 {[%clk 0:00:53.4]} 19. Nd3 {[%clk 0:01:35.7]}
19... Ba6 {[%clk 0:00:51.4]} 20. Qc1 {[%clk 0:01:27.6]} 20... Qxc1+ {[%clk
0:00:34.9]} 21. Rxc1 {[%clk 0:01:27.2]} 21... Na5 {[%clk 0:00:34.9]} 22. Nxe5
{[%clk 0:01:22.2]} 22... Bxe2 {[%clk 0:00:34.4]} 23. Kxe2 {[%clk 0:01:22.2]}
23... Nxb3 {[%clk 0:00:34.6]} 24. Rc7 {[%clk 0:01:22.9]} 1-0

[Event "Early-Titled-Tuesday-Blitz-July-09-2024"]
[Site "Chess.com"]
[Date "2024.07.09"]
[Round "7"]
[White "Ginger_GM"]
[Black "ArmanGhevondyanchess"]
[Result "0-1"]
[WhiteElo "2605"]
[BlackElo "2746"]
[TimeControl "180+1"]
[EndTime "9:17:48 PDT"]
[Termination "ArmanGhevondyanchess won by resignation"]

1. f4 {[%clk 0:03:00.9]} 1... Nf6 {[%clk 0:02:56.3]} 2. Nf3 {[%clk 0:02:58.2]}
2... g6 {[%clk 0:02:55.9]} 3. d3 {[%clk 0:02:53.7]} 3... d5 {[%clk 0:02:55.6]}
4. e3 {[%clk 0:02:51.6]} 4... Bg7 {[%clk 0:02:55.8]} 5. Be2 {[%clk 0:02:51.8]}
5... O-O {[%clk 0:02:56.2]} 6. O-O {[%clk 0:02:51.6]} 6... c5 {[%clk 0:02:56.9]}
7. a4 {[%clk 0:02:49.5]} 7... Nc6 {[%clk 0:02:57.1]} 8. Kh1 {[%clk 0:02:48.8]}
8... Re8 {[%clk 0:02:48.5]} 9. Ne5 {[%clk 0:02:48.3]} 9... Nxe5 {[%clk
0:02:44.3]} 10. fxe5 {[%clk 0:02:47.9]} 10... Nd7 {[%clk 0:02:44.6]} 11. d4
{[%clk 0:02:47.9]} 11... f6 {[%clk 0:02:44]} 12. c4 {[%clk 0:02:31.2]} 12...
fxe5 {[%clk 0:02:41.3]} 13. dxc5 {[%clk 0:02:28]} 13... d4 {[%clk 0:02:33.4]}
14. b4 {[%clk 0:01:45.3]} 14... a5 {[%clk 0:02:09.9]} 15. Bb2 {[%clk 0:01:30.5]}
15... axb4 {[%clk 0:02:07.1]} 16. exd4 {[%clk 0:01:30.5]} 16... exd4 {[%clk
0:02:04.3]} 17. Bxd4 {[%clk 0:01:29.6]} 17... Nxc5 {[%clk 0:01:58.5]} 18. Bxg7
{[%clk 0:01:21.2]} 18... Qxd1 {[%clk 0:01:54.2]} 19. Rxd1 {[%clk 0:01:20.7]}
19... Kxg7 {[%clk 0:01:53.4]} 20. Nd2 {[%clk 0:01:20.7]} 20... Bf5 {[%clk
0:01:46.1]} 21. Ra2 {[%clk 0:01:00.7]} 21... Red8 {[%clk 0:01:36.7]} 22. a5
{[%clk 0:00:55.6]} 22... b6 {[%clk 0:01:31.1]} 23. a6 {[%clk 0:00:36.6]} 23...
b3 {[%clk 0:01:22.2]} 24. Rb2 {[%clk 0:00:35.7]} 24... Bc2 {[%clk 0:01:21.8]}
0-1

[Event "Early-Titled-Tuesday-Blitz-July-09-2024"]
[Site "Chess.com"]
[Date "2024.07.09"]
[Round "7"]
[White "arctic_t00"]
[Black "alexrustemov"]
[Result "0-1"]
[WhiteElo "2658"]
[BlackElo "2881"]
[TimeControl "180+1"]
[EndTime "9:17:50 PDT"]
[Termination "alexrustemov won by resignation"]

1. Nf3 {[%clk 0:03:00.9]} 1... d5 {[%clk 0:02:57.5]} 2. g3 {[%clk 0:03:01.3]}
2... Nf6 {[%clk 0:02:55]} 3. Bg2 {[%clk 0:03:01.5]} 3... e6 {[%clk 0:02:55.4]}
4. O-O {[%clk 0:03:00.5]} 4... b5 {[%clk 0:02:55.8]} 5. d4 {[%clk 0:02:52.1]}
5... c5 {[%clk 0:02:54.6]} 6. a4 {[%clk 0:02:48.3]} 6... b4 {[%clk 0:02:54.2]}
7. c4 {[%clk 0:02:48.4]} 7... bxc3 {[%clk 0:02:53.7]} 8. Nxc3 {[%clk 0:02:38.4]}
8... Nbd7 {[%clk 0:02:51.8]} 9. Bf4 {[%clk 0:02:37.6]} 9... a6 {[%clk
0:02:48.7]} 10. Rc1 {[%clk 0:02:33.4]} 10... Bb7 {[%clk 0:02:47.2]} 11. Na2
{[%clk 0:01:54.3]} 11... Rc8 {[%clk 0:02:38.6]} 12. dxc5 {[%clk 0:01:46.5]}
12... Bxc5 {[%clk 0:02:29.4]} 13. b4 {[%clk 0:01:46.9]} 13... Ba7 {[%clk
0:02:28.4]} 14. Rxc8 {[%clk 0:01:42.6]} 14... Qxc8 {[%clk 0:02:28.1]} 15. Qb3
{[%clk 0:01:31.1]} 15... O-O {[%clk 0:02:24.7]} 16. Rc1 {[%clk 0:01:30.6]} 16...
Qa8 {[%clk 0:02:25.1]} 17. e3 {[%clk 0:01:26.7]} 17... Rc8 {[%clk 0:02:23.1]}
18. Rc2 {[%clk 0:01:18.4]} 18... h6 {[%clk 0:02:21.9]} 19. h4 {[%clk 0:01:17.6]}
19... Rxc2 {[%clk 0:02:17.7]} 20. Qxc2 {[%clk 0:01:18.5]} 20... d4 {[%clk
0:02:17.1]} 21. Qe2 {[%clk 0:01:05.5]} 21... e5 {[%clk 0:02:08.6]} 22. Bxe5
{[%clk 0:00:43.8]} 22... Nxe5 {[%clk 0:02:08.4]} 23. Nxe5 {[%clk 0:00:42.4]}
23... Bxg2 {[%clk 0:02:08.9]} 24. f3 {[%clk 0:00:37.5]} 24... Bh3 {[%clk
0:01:56.2]} 25. g4 {[%clk 0:00:37.4]} 25... dxe3 {[%clk 0:01:54.5]} 26. Kh2
{[%clk 0:00:13.9]} 26... Qd5 {[%clk 0:01:53.2]} 0-1